[Event "NOR-chT Eliteserien 2018-19"]
[Site "Norway"]
[Date "2019.03.08"]
[Round "7.11"]
[White "Galinsky, Timofey"]
[Black "Nordquelle, Daniel"]
[Result "1-0"]
[ECO "A07"]
[WhiteElo "2369"]
[BlackElo "2235"]
[Annotator "NA RC"]
[PlyCount "117"]
[EventDate "2018.11.02"]
[EventType "team-tourn"]
[EventCountry "NOR"]
[SourceTitle "playchess.com"]
[Source "ChessBase"]
[SourceQuality "1"]
[TimeControl "40/5400+30:1800+30"]

{[%evp 13,117,68,131,134,180,65,367,208,247,256,32767,32767,32767,32767,142,32767,136,123,122,141,141,32767,222,88,72,60,74,61,70,64,70,40,68,47,98,93,80,59,53,0,32767,74,70,15,32767,3,7,25,12,5,8,0,74,69,66,32767,32767,66,32767,32767,32767,75,32767,32767,32767,0,0,0,32767,32767,0,0,0,0,0,0,32767,32767,81,32767,32767,32767,32767,32767,32767,32767,32767,32767,32767,32767,32767,32767,32767,32767,32767,32767,0,32767,32767,32767,32767,0,29975,32767,29978,576]} 1. g3 {[%emt 0:00:00]} d5 {[%emt 0:00:00]} 2. Bg2 {[%emt 0:00:00]} Nf6 {[%emt 0:00:05]} 3. Nf3 {[%emt 0:01:28]} Bf5 {[%emt 0:01:47]} 4. d3 {[%emt 0:02:17]} h6 {[%emt 0:00:07]} 5. O-O {[%emt 0:01:17]} e6 {[%emt 0:00:58]} 6. c4 {[%emt 0:01:59] A07: Réti Opening: New York and Capablanca Systems} (6. Nbd2 Be7 7. b3 O-O 8. Bb2 c5 9. Re1 Nc6 10. e4 Bh7 11. Ne5 Nxe5 12. Bxe5 Rc8 13. a4 b6 14. h3 Re8 15. f4 a6 16. Qe2 b5 17. axb5 axb5 {1-0 (32) Maghsoodloo,P (2584)-Van Wely,L (2675) Bandar e Anzali 2017}) 6... Bd6 {[%emt 0:03:50]} 7. Nc3 $146 {[%emt 0:08:54]} ({Predecessor:} 7. Qb3 b6 8. cxd5 exd5 9. Nc3 c6 10. Nd4 Bh7 11. Re1 O-O 12. Bd2 Re8 13. Rac1 {0-1 (39) Figueroa,H (2005)-Silva,C Thessaloniki 1988}) 7... c5 {[%emt 0:09:27]} 8. Nh4 {[%emt 0:03:42]} Bg4 {[%emt 0:40:37]} 9. cxd5 {[%emt 0:06:09]} ({Only move:} 9. h3 $18 Bh5 10. cxd5) 9... g5 $2 {[%emt 0:02:13]} (9... exd5 $14 10. Nxd5 Nxd5) 10. Qa4+ {[%emt 0:02:10]} (10. dxe6 $142 fxe6 11. Bxb7) 10... Kf8 {[%emt 0:05:27]} 11. dxe6 {[%emt 0:06:51]} Nc6 {[%emt 0:07:32]} 12. Nf3 {[%emt 0:03:48]} Bxe6 {[%emt 0:00:18]} 13. Bd2 {[%emt 0:03:08]} a6 {[%emt 0:00:45]} 14. Ne4 {[%emt 0:04:44]} b5 {[%emt 0:01:16]} 15. Qc2 {[%emt 0:00:29]} Nxe4 {[%emt 0:02:05]} 16. dxe4 {[%emt 0:00:05]} Rc8 {[%emt 0:06:03]} 17. Rfd1 {[%emt 0:03:35]} Qe7 {[%emt 0:02:02]} (17... Nd4 $16 18. Nxd4 cxd4) 18. Be3 {[%emt 0:04:22]} (18. Bc3 $18 {is the precise move to win.} Rg8 19. e5) 18... Kg7 {[%emt 0:01:53]} 19. a3 {[%emt 0:03:20]} f6 {[%emt 0:01:19]} 20. h4 {[%emt 0:05:46]} Rhd8 {[%emt 0:01:37]} 21. hxg5 {[%emt 0:01:09]} hxg5 {[%emt 0:00:09]} 22. Qc3 {[%emt 0:05:01]} Kg6 {[%emt 0:00:49]} 23. Rac1 {[%emt 0:05:09]} Bc4 {[%emt 0:02:11]} 24. Qc2 {[%emt 0:00:59]} Kg7 {[%emt 0:02:02]} 25. b3 {[%emt 0:04:19]} Be6 {[%emt 0:00:06]} 26. Qb2 {[%emt 0:00:38]} Kg6 {[%emt 0:01:46]} 27. Qb1 {[%emt 0:04:21]} Kg7 {[%emt 0:00:41]} 28. Bd2 {[%emt 0:00:56]} g4 {[%emt 0:02:46]} 29. Nh4 {[%emt 0:00:29]} Nd4 $1 {[%emt 0:00:38]} 30. e5 {[%emt 0:00:08]} Bxe5 {[%emt 0:01:35]} 31. Bh6+ {[%emt 0:07:10]} Kg8 {[%emt 0:00:05]} 32. Rxd4 {[%emt 0:02:06]} cxd4 {[%emt 0:01:32]} (32... Rxd4 $11 33. Qg6+ Kh8) 33. Rxc8 {[%emt 0:00:29]} Rxc8 {[%emt 0:00:12]} 34. Qg6+ {[%emt 0:04:07]} Kh8 {[%emt 0:00:10]} 35. Nf5 {[%emt 0:00:04]} Bxf5 {[%emt 0:01:19]} 36. Qxf5 {[%emt 0:00:04]} Rc7 {[%emt 0:01:00]} 37. Qxg4 {[%emt 0:02:44]} Qh7 {[%emt 0:01:19]} 38. Bd5 {[%emt 0:00:12]} f5 {[%emt 0:00:37]} 39. Qh4 {[%emt 0:00:16]} (39. Qg5 $16 Rd7 {[#]} 40. Be4 $1 {[%mdl 512]}) 39... Rd7 {[%emt 0:00:36]} 40. f4 $1 {[%emt 0:03:00]} Rxd5 {[%emt 0:00:33]} 41. fxe5 {[%emt 0:30:06]} Qg6 {[%emt 0:02:31]} 42. Bg5+ {[%emt 0:00:00]} Kg8 {[%emt 0:02:09]} 43. Bf6 {[%emt 0:00:00]} Kf7 {[%emt 0:00:46]} 44. Kf2 $1 {[%emt 0:00:00]} a5 {[%emt 0:08:11]} 45. Qh1 {[%emt 0:00:00]} Ke6 {[%emt 0:01:00]} 46. Qh8 {[%emt 0:00:00]} Qf7 {[%emt 0:00:34]} 47. Qc8+ {[%emt 0:00:00]} Qd7 {[%emt 0:00:13]} 48. Qg8+ {[%emt 0:00:00]} Qf7 {[%emt 0:00:06]} 49. Qa8 {[%emt 0:00:00]} Qd7 {[%emt 0:00:36]} 50. g4 {[%emt 0:00:00]} Kf7 {[%emt 0:04:20]} 51. Qh8 {[%emt 0:00:00]} fxg4 {[%emt 0:03:49]} 52. Qg7+ {[%emt 0:00:00]} Ke6 {[%emt 0:00:03]} 53. Qg8+ {[%emt 0:00:00]} Kf5 {[%emt 0:00:07]} 54. Kg3 {[%emt 0:00:00]} Ke4 {[%emt 0:00:57]} 55. e6 {[%emt 0:00:00]} Qd6+ {[%emt 0:04:27]} 56. Kg2 {[%emt 0:00:00]} Re5 {[%emt 0:00:38]} 57. Qh7+ {[%emt 0:00:00]} Ke3 $2 {[%emt 0:03:47]} (57... Kd5 $11 58. Bxe5 Qxe5 59. Qd7+ {[%mdl 64] Double Attack} Qd6) 58. Bg5+ {[%emt 0:00:00]} Rxg5 {[%emt 0:00:53]} 59. Qd3+ $18 {[%emt 0:00:00]} 1-0

[Event "NOR-chT Eliteserien 2018-19"]
[Site "Norway"]
[Date "2019.03.08"]
[Round "7.12"]
[White "Christenson, Flemming"]
[Black "Elseth, Roar"]
[Result "1/2-1/2"]
[ECO "B13"]
[WhiteElo "2204"]
[BlackElo "2278"]
[Annotator "NA RC"]
[PlyCount "66"]
[EventDate "2018.11.02"]
[EventType "team-tourn"]
[EventCountry "NOR"]
[SourceTitle "playchess.com"]
[Source "ChessBase"]
[SourceQuality "1"]
[TimeControl "40/5400+30:1800+30"]

{[%evp 13,66,-18,-10,-4,-4,-1,0,3,32767,32767,32767,32767,0,0,10,0,0,32767,25,13,12,4,11,4,32767,32767,32767,27,32767,-3,8,0,44,0,32767,0,32767,-8,0,-6,0,0,10,10,20,-32,32767,-32,0,32767,32767,-17,0,-7,0]} 1. d4 {[%emt 0:00:00]} d5 {[%emt 0:00:00]} 2. Bf4 {[%emt 0:00:00]} c5 {[%emt 0:00:54]} 3. e3 {[%emt 0:01:37]} Nc6 {[%emt 0:00:49]} 4. Nc3 {[%emt 0:02:39]} cxd4 {[%emt 0:04:04]} 5. exd4 {[%emt 0:00:17]} Bf5 {[%emt 0:00:41]} 6. Nf3 {[%emt 0:02:21] B13: Caro-Kann: Exchange Variation and Panov-Botvinnik Attack} e6 {[%emt 0:03:19]} 7. Bd3 {[%emt 0:04:15]} Bxd3 {[%emt 0:09:29]} 8. Qxd3 {[%emt 0:01:01]} Rc8 $146 {[%emt 0:00:40]} ({Predecessor:} 8... Nf6 9. Ne5 Be7 10. O-O O-O 11. Ne2 Rc8 12. c3 Nxe5 13. Bxe5 {½-½ (28) Gareyev,T (2592)-Nguyen,A (2468) Surakarta 2018}) 9. O-O {[%emt 0:01:32]} Bd6 {[%emt 0:06:52]} 10. Bxd6 {[%emt 0:03:30]} Qxd6 {[%emt 0:00:08]} 11. a3 {[%emt 0:00:13]} Nge7 {[%emt 0:04:00]} 12. Rae1 {[%emt 0:03:41]} a6 {[%emt 0:11:48]} 13. Nd1 {[%emt 0:04:40]} Ng6 {[%emt 0:03:55]} 14. c3 {[%emt 0:00:44]} O-O {[%emt 0:00:51]} 15. Ng5 {[%emt 0:13:04]} Nce7 {[%emt 0:00:25]} 16. g3 {[%emt 0:04:37]} h6 {[%emt 0:01:53]} 17. Nf3 {[%emt 0:02:08]} Qb6 {[%emt 0:04:07]} 18. h4 {[%emt 0:02:52]} Nc6 {[%emt 0:05:48]} 19. h5 {[%emt 0:02:19]} Nge7 {[%emt 0:00:13]} 20. Nh4 {[%emt 0:05:42]} Na5 {[%emt 0:01:19]} 21. f4 {[%emt 0:03:20]} Nc4 {[%emt 0:03:39]} 22. Re2 {[%emt 0:00:22]} Nd6 {[%emt 0:01:36]} 23. Nf2 {[%emt 0:03:05]} Nef5 {[%emt 0:02:36]} 24. Nxf5 {[%emt 0:09:09]} exf5 {[%emt 0:02:57]} 25. Qf3 {[%emt 0:02:46]} Ne4 {[%emt 0:00:56]} 26. Nd3 {[%emt 0:01:54]} Qb5 {[%emt 0:00:45]} 27. Rg2 {[%emt 0:00:42]} Qd7 {[%emt 0:02:37]} 28. Ne5 {[%emt 0:00:53]} Qe6 {[%emt 0:00:06]} 29. Kh1 {[%emt 0:02:36]} Kh7 {[%emt 0:02:15]} 30. Rfg1 {[%emt 0:02:29]} Nf6 {[%emt 0:04:33]} 31. Re2 {[%emt 0:04:01]} Ne4 {[%emt 0:00:35]} 32. Reg2 {[%emt 0:01:52]} Nf6 {[%emt 0:01:09]} 33. Re2 {[%emt 0:01:13]} Ne4 $11 {[%emt 0:00:00]} 1/2-1/2

[Event "NOR-chT Eliteserien 2018-19"]
[Site "Norway"]
[Date "2019.03.08"]
[Round "7.14"]
[White "Ranaldi, Lucas"]
[Black "Mikalsen, Erlend"]
[Result "1/2-1/2"]
[ECO "E07"]
[WhiteElo "2230"]
[BlackElo "2357"]
[Annotator "RC"]
[PlyCount "102"]
[EventDate "2018.11.02"]
[EventType "team-tourn"]
[EventCountry "NOR"]
[SourceTitle "playchess.com"]
[Source "ChessBase"]
[SourceQuality "1"]
[TimeControl "40/5400+30:1800+30"]

1. Nf3 {[%emt 0:00:00]} d5 {[%emt 0:00:00]} 2. d4 {[%emt 0:00:00]} Nf6 {[%emt 0:00:00]} 3. c4 {[%emt 0:00:00]} e6 {[%emt 0:00:00]} 4. Nc3 {[%emt 0:00:00]} Be7 {[%emt 0:02:36]} 5. g3 {[%emt 0:00:00]} O-O {[%emt 0:03:58]} 6. Bg2 {[%emt 0:00:00]} c6 {[%emt 0:11:57]} 7. O-O {[%emt 0:00:02]} Nbd7 {[%emt 0:01:40]} 8. Qd3 {[%emt 0:00:05]} Qa5 {[%emt 0:08:54]} 9. Nd2 {[%emt 0:05:17]} Rd8 {[%emt 0:01:50]} 10. Rd1 {[%emt 0:06:29]} Rb8 {[%emt 0:16:56]} 11. cxd5 {[%emt 0:12:45]} exd5 {[%emt 0:05:42]} 12. Nb3 {[%emt 0:00:19]} Qb6 {[%emt 0:04:52]} 13. Bf4 {[%emt 0:00:45]} Ra8 {[%emt 0:00:05]} 14. Qc2 {[%emt 0:10:30]} a5 {[%emt 0:03:38]} 15. Na4 {[%emt 0:07:04]} Qb5 {[%emt 0:01:48]} 16. Nbc5 {[%emt 0:02:03]} Nxc5 {[%emt 0:03:05]} 17. dxc5 {[%emt 0:00:45]} Bf5 {[%emt 0:01:44]} 18. Qxf5 {[%emt 0:01:47]} Qxa4 {[%emt 0:00:07]} 19. Bc7 {[%emt 0:11:13]} Re8 {[%emt 0:01:19]} 20. Be5 {[%emt 0:05:13]} Qb5 {[%emt 0:04:59]} 21. Bxf6 {[%emt 0:22:08]} Bxf6 {[%emt 0:00:21]} 22. e3 {[%emt 0:00:18]} a4 {[%emt 0:03:42]} 23. Rab1 {[%emt 0:00:35]} Qxc5 {[%emt 0:00:32]} 24. Bf1 {[%emt 0:02:04]} Qe7 {[%emt 0:05:13]} 25. Bd3 {[%emt 0:02:14]} g6 {[%emt 0:00:14]} 26. Qf3 {[%emt 0:00:08]} Bg7 {[%emt 0:01:50]} 27. h4 {[%emt 0:00:39]} h5 {[%emt 0:00:27]} 28. Qe2 {[%emt 0:01:34]} Qc7 {[%emt 0:05:32]} 29. Qc2 {[%emt 0:02:36]} Re7 {[%emt 0:00:54]} 30. Kg2 {[%emt 0:00:41]} Qb6 {[%emt 0:02:56]} 31. Be2 {[%emt 0:04:27]} Re4 {[%emt 0:02:11]} 32. a3 {[%emt 0:02:04]} Qd8 {[%emt 0:03:05]} 33. b3 {[%emt 0:01:29]} Qe7 {[%emt 0:01:57]} 34. b4 {[%emt 0:00:01]} Re6 {[%emt 0:00:24]} 35. Bf3 {[%emt 0:00:51]} Be5 {[%emt 0:01:34]} 36. Rd3 {[%emt 0:00:19]} Kg7 {[%emt 0:01:08]} 37. b5 {[%emt 0:00:54]} Ra5 {[%emt 0:00:41]} 38. bxc6 {[%emt 0:00:11]} bxc6 {[%emt 0:00:15]} 39. Rb6 {[%emt 0:01:17]} c5 {[%emt 0:00:36]} 40. Rb1 {[%emt 0:00:39]} d4 {[%emt 0:00:41]} 41. Rb7 {[%emt 0:01:45]} Qd6 {[%emt 0:01:13]} 42. Qc4 {[%emt 0:02:47]} Re7 {[%emt 0:05:08]} 43. Rxe7 {[%emt 0:03:07]} Qxe7 {[%emt 0:00:04]} 44. Bc6 {[%emt 0:03:19]} Qa7 {[%emt 0:04:15]} 45. Bd5 {[%emt 0:01:51]} f5 {[%emt 0:02:57]} 46. e4 {[%emt 0:01:52]} f4 {[%emt 0:03:50]} 47. Rf3 {[%emt 0:00:13]} Qd7 {[%emt 0:04:31]} 48. Be6 {[%emt 0:11:06]} Qd6 {[%emt 0:00:29]} 49. Bd5 {[%emt 0:01:06]} Qd7 {[%emt 0:06:06]} 50. Be6 {[%emt 0:00:01]} Qd6 {[%emt 0:00:16]} 51. Bd5 {[%emt 0:00:02]} Qd7 {[%emt 0:00:28]} 1/2-1/2

[Event "NOR-chT Eliteserien 2018-19"]
[Site "Norway"]
[Date "2019.03.08"]
[Round "7.15"]
[White "Flermoen, Peter"]
[Black "Gandrud, Vegar Koi"]
[Result "1/2-1/2"]
[ECO "B92"]
[WhiteElo "2314"]
[BlackElo "2321"]
[Annotator "RC"]
[PlyCount "87"]
[EventDate "2018.11.02"]
[EventType "team-tourn"]
[EventCountry "NOR"]
[SourceTitle "playchess.com"]
[Source "ChessBase"]
[SourceQuality "1"]
[TimeControl "40/5400+30:1800+30"]

1. e4 {[%emt 0:00:00]} c5 {[%emt 0:00:00]} 2. Nf3 {[%emt 0:00:00]} d6 {[%emt 0:00:00]} 3. d4 {[%emt 0:00:00]} cxd4 {[%emt 0:00:00]} 4. Nxd4 {[%emt 0:00:00]} Nf6 {[%emt 0:00:00]} 5. Nc3 {[%emt 0:00:12]} a6 {[%emt 0:00:00]} 6. Be2 {[%emt 0:02:24]} e5 {[%emt 0:00:03]} 7. Nb3 {[%emt 0:01:37]} Be6 {[%emt 0:01:14]} 8. O-O {[%emt 0:01:26]} Be7 {[%emt 0:00:26]} 9. f4 {[%emt 0:04:55]} Nc6 {[%emt 0:11:14]} 10. Be3 {[%emt 0:01:20]} exf4 {[%emt 0:04:52]} 11. Rxf4 {[%emt 0:05:44]} O-O {[%emt 0:07:31]} 12. Nd5 {[%emt 0:12:58]} Ne5 {[%emt 0:03:17]} 13. c4 {[%emt 0:06:24]} Ng6 {[%emt 0:01:32]} 14. Bb6 {[%emt 0:13:47]} Qd7 {[%emt 0:01:52]} 15. Nxf6+ {[%emt 0:04:10]} Bxf6 {[%emt 0:00:16]} 16. Rxf6 {[%emt 0:02:16]} gxf6 {[%emt 0:00:06]} 17. Bd4 {[%emt 0:06:02]} Ne5 {[%emt 0:08:22]} 18. Qe1 {[%emt 0:05:39]} f5 {[%emt 0:11:12]} 19. c5 {[%emt 0:07:40]} Bxb3 {[%emt 0:05:24]} 20. axb3 {[%emt 0:01:40]} f6 {[%emt 0:00:28]} 21. Rd1 {[%emt 0:03:53]} fxe4 {[%emt 0:02:37]} 22. Bxe5 {[%emt 0:01:22]} fxe5 {[%emt 0:00:31]} 23. Bc4+ {[%emt 0:00:42]} Kh8 {[%emt 0:00:46]} 24. Qxe4 {[%emt 0:00:32]} Rae8 {[%emt 0:13:46]} 25. cxd6 {[%emt 0:06:09]} Rf6 {[%emt 0:04:34]} 26. Qd5 {[%emt 0:02:39]} Ree6 {[%emt 0:06:45]} 27. Qxe6 {[%emt 0:01:10]} Rxe6 {[%emt 0:00:03]} 28. Bxe6 {[%emt 0:00:09]} Qxe6 {[%emt 0:00:20]} 29. d7 {[%emt 0:00:11]} Qb6+ {[%emt 0:00:08]} 30. Kf1 {[%emt 0:01:03]} Qd8 {[%emt 0:00:01]} 31. Ke2 {[%emt 0:00:43]} Kg7 {[%emt 0:00:09]} 32. g4 {[%emt 0:00:46]} Kf6 {[%emt 0:02:06]} 33. h4 {[%emt 0:01:24]} Ke6 {[%emt 0:11:16]} 34. b4 {[%emt 0:01:45]} b5 {[%emt 0:02:20]} 35. Rd2 {[%emt 0:01:13]} Ke7 {[%emt 0:00:17]} 36. Rd1 {[%emt 0:00:19]} Kf7 {[%emt 0:00:48]} 37. Rd6 {[%emt 0:01:01]} Ke7 {[%emt 0:00:12]} 38. Rd1 {[%emt 0:00:09]} Ke6 {[%emt 0:00:06]} 39. Rd2 {[%emt 0:00:12]} Ke7 {[%emt 0:02:58]} 40. Rd1 {[%emt 0:00:21]} h6 {[%emt 0:00:43]} 41. Rd2 {[%emt 0:30:17]} Ke6 {[%emt 0:30:19]} 42. Rd1 {[%emt 0:00:24]} Ke7 {[%emt 0:00:00]} 43. Rd2 {[%emt 0:00:00]} Ke6 {[%emt 0:00:00]} 44. Rd1 {[%emt 0:00:00]} 1/2-1/2

[Event "NOR-chT Eliteserien 2018-19"]
[Site "Norway"]
[Date "2019.03.08"]
[Round "7.16"]
[White "Hagen, Anders Gjerdrum"]
[Black "Klukin, Kirill"]
[Result "1-0"]
[ECO "E50"]
[WhiteElo "2205"]
[BlackElo "2326"]
[Annotator "NA RC"]
[PlyCount "125"]
[EventDate "2018.11.02"]
[EventType "team-tourn"]
[EventCountry "NOR"]
[SourceTitle "playchess.com"]
[Source "ChessBase"]
[SourceQuality "1"]
[TimeControl "40/5400+30:1800+30"]

1. d4 {[%emt 0:00:00]} Nf6 {[%emt 0:00:00]} 2. c4 {[%emt 0:00:00]} e6 {[%emt 0:00:00]} 3. Nc3 {[%emt 0:00:09]} Bb4 {[%emt 0:00:00]} 4. e3 {[%emt 0:00:27]} Nc6 {[%emt 0:00:16]} 5. Nf3 {[%emt 0:01:47]} O-O {[%emt 0:00:08]} 6. Bd2 {[%emt 0:04:18] E50: Nimzo-Indian: Rubinstein: 4...0-0 5 Nf3} d6 {[%emt 0:00:58]} 7. a3 {[%emt 0:00:41]} Bxc3 $1 {[%emt 0:00:08]} 8. Bxc3 {[%emt 0:00:08]} Ne4 {[%emt 0:00:17]} (8... Qe7 9. b4 e5 10. Be2 Bg4 11. O-O e4 12. Nd2 Bxe2 13. Qxe2 Rfe8 {0-1 (59) Riazantsev,A (2671)-Bologan,V (2640) Tallinn 2016}) 9. Qc2 {[%emt 0:00:50]} Nxc3 {[%emt 0:01:00]} 10. Qxc3 {[%emt 0:00:11]} a5 {[%emt 0:00:15]} 11. Be2 {[%emt 0:04:22]} Qe7 {[%emt 0:01:36]} 12. Rc1 $146 {[%emt 0:04:35]} ({Predecessor:} 12. O-O a4 {½-½ (77) Kolasa,P (1950)-Tomazini,Z (2405) Pardubice 2017}) 12... a4 {[%emt 0:08:49]} 13. O-O {[%emt 0:08:38]} e5 {[%emt 0:18:17]} 14. d5 {[%emt 0:13:45]} Nb8 {[%emt 0:00:31]} 15. c5 {[%emt 0:00:50]} Nd7 {[%emt 0:11:59]} (15... Bd7 $14) 16. cxd6 {[%emt 0:02:17]} cxd6 {[%emt 0:00:07]} 17. Qc7 {[%emt 0:02:33]} Re8 {[%emt 0:25:16]} 18. Nd2 {[%emt 0:28:39]} Nf6 {[%emt 0:13:47]} 19. Qxe7 {[%emt 0:01:54]} Rxe7 {[%emt 0:00:01] [#]} 20. Nc4 $1 {[%emt 0:00:13]} Nxd5 {[%emt 0:03:23]} 21. Rfd1 {[%emt 0:01:32]} ({Don't take} 21. Nxd6 Be6 $16) 21... Be6 {[%emt 0:05:08]} 22. Rxd5 {[%emt 0:01:56]} Rc8 {[%emt 0:00:41]} 23. Rxd6 {[%emt 0:12:54]} b5 {[%emt 0:00:31]} 24. Rb6 {[%emt 0:01:47]} bxc4 {[%emt 0:00:33]} 25. Rb4 {[%emt 0:00:31]} Ra7 {[%emt 0:03:46]} 26. Rc3 {[%emt 0:03:16]} Kf8 {[%emt 0:02:04]} 27. Kf1 {[%emt 0:01:20]} Ke7 {[%emt 0:01:35]} 28. Ke1 {[%emt 0:01:42]} Kd6 {[%emt 0:00:55]} 29. Kd2 {[%emt 0:01:39]} Rac7 {[%emt 0:01:34]} 30. Rxa4 {[%emt 0:00:20]} Rb8 {[%emt 0:00:15] [#]} 31. Rb4 $1 {[%emt 0:01:32]} ({Worse is} 31. Bxc4 Rxb2+ 32. Ke1 Ke7 $15) 31... Rcb7 {[%emt 0:01:03]} 32. Rxb7 {[%emt 0:00:31]} Rxb7 {[%emt 0:00:01]} 33. Bxc4 {[%emt 0:00:25]} Rxb2+ {[%emt 0:00:11]} 34. Ke1 {[%emt 0:00:09]} Bxc4 {[%emt 0:01:20]} 35. Rxc4 {[%emt 0:00:05]} f5 {[%emt 0:00:32]} 36. Ra4 {[%emt 0:00:35]} (36. h4 $16) 36... e4 {[%emt 0:00:29]} (36... Rb1+ $11 37. Ke2 Rb2+ 38. Kf3 e4+ 39. Kg3 g5) 37. Ra7 {[%emt 0:00:18]} ({Better is} 37. Ra6+ $16 Ke5 38. g3) 37... g5 {[%emt 0:00:26]} (37... Rb1+ $1 $11 38. Kd2 Rb2+ 39. Kc3 Rxf2) 38. Rxh7 {[%emt 0:01:16]} (38. g3 $16) 38... Rb1+ {[%emt 0:00:04]} 39. Kd2 {[%emt 0:00:22]} Rb2+ {[%emt 0:00:05]} 40. Kc3 {[%emt 0:00:46]} Rxf2 {[%emt 0:00:06]} 41. g4 {[%emt 0:30:40]} f4 {[%emt 0:31:50]} 42. Kd4 {[%emt 0:00:27]} Re2 $2 {[%emt 0:00:30] [#]} (42... Rf3 $11 {and Black has nothing to worry.} 43. Rh6+ Kd7 44. exf4 (44. Kxe4 Rxe3+ 45. Kd5 Rxa3 $11) 44... Rxf4) 43. Rh6+ {[%emt 0:00:00]} (43. exf4 $1 $18 {is the precise move to win.} gxf4 44. Rf7) 43... Ke7 {[%emt 0:00:00]} 44. Rh3 $16 {[%emt 0:00:00]} ({Much weaker is} 44. Kxe4 $6 Rxe3+ 45. Kd4 (45. Kf5 $2 f3 $19) 45... Rxa3 $11) 44... fxe3 {[%emt 0:00:00]} 45. Kxe4 {[%emt 0:00:00]} Kf6 {[%emt 0:00:00]} 46. Rf3+ {[%emt 0:00:00]} Kg6 {[%emt 0:00:00]} 47. h3 {[%emt 0:00:00]} Rd2 {[%emt 0:00:00]} 48. Rxe3 {[%emt 0:00:00]} Kf6 {[%emt 0:00:00]} 49. Rd3 {[%emt 0:00:00]} Re2+ {[%emt 0:00:00]} 50. Kd5 {[%emt 0:00:00]} Rc2 {[%emt 0:00:00]} 51. Rf3+ {[%emt 0:00:00]} Kg6 {[%emt 0:00:00]} 52. Kd4 {[%emt 0:00:00]} Rc1 {[%emt 0:00:00]} 53. Rc3 {[%emt 0:00:00]} Rb1 {[%emt 0:00:00]} 54. Kc4 {[%emt 0:00:00]} Rb8 {[%emt 0:00:00]} 55. a4 {[%emt 0:00:00]} Rc8+ {[%emt 0:00:00]} 56. Kb4 {[%emt 0:00:00]} Rb8+ {[%emt 0:00:00]} 57. Ka3 {[%emt 0:00:00]} Ra8 {[%emt 0:00:00]} 58. Rc6+ {[%emt 0:00:00]} Kg7 {[%emt 0:00:00]} 59. Rc5 {[%emt 0:00:00]} Kf6 {[%emt 0:00:00]} 60. Rf5+ {[%emt 0:00:00]} Kg6 {[%emt 0:00:00]} 61. a5 {[%emt 0:00:00]} Rh8 {[%emt 0:00:00]} 62. Rf3 {[%emt 0:00:00]} Ra8 {[%emt 0:00:00]} 63. Ka4 {[%emt 0:00:00]} 1-0

[Event "NOR-chT Eliteserien 2018-19"]
[Site "Norway"]
[Date "2019.03.08"]
[Round "7.17"]
[White "Nielsen, Andre"]
[Black "Vitenberg, Noam Aviv"]
[Result "1-0"]
[ECO "B19"]
[WhiteElo "2211"]
[BlackElo "2139"]
[Annotator "RC"]
[PlyCount "97"]
[EventDate "2018.11.02"]
[EventType "team-tourn"]
[EventCountry "NOR"]
[SourceTitle "playchess.com"]
[Source "ChessBase"]
[SourceQuality "1"]
[TimeControl "40/5400+30:1800+30"]

1. e4 {[%emt 0:00:00]} c6 {[%emt 0:00:00]} 2. d4 {[%emt 0:00:00]} d5 {[%emt 0:00:00]} 3. Nc3 {[%emt 0:00:06]} dxe4 {[%emt 0:00:00]} 4. Nxe4 {[%emt 0:00:10]} Bf5 {[%emt 0:00:00]} 5. Ng3 {[%emt 0:00:27]} Bg6 {[%emt 0:00:08]} 6. h4 {[%emt 0:00:43]} h6 {[%emt 0:00:06]} 7. Nf3 {[%emt 0:00:19]} Nd7 {[%emt 0:00:07]} 8. h5 {[%emt 0:00:49]} Bh7 {[%emt 0:00:05]} 9. Bd3 {[%emt 0:00:10]} Bxd3 {[%emt 0:00:07]} 10. Qxd3 {[%emt 0:00:12]} e6 {[%emt 0:00:19]} 11. Bd2 {[%emt 0:00:37]} Ngf6 {[%emt 0:00:08]} 12. O-O-O {[%emt 0:00:21]} Be7 {[%emt 0:00:11]} 13. Ne4 {[%emt 0:00:14]} Nxe4 {[%emt 0:00:11]} 14. Qxe4 {[%emt 0:00:10]} Nf6 {[%emt 0:00:07]} 15. Qe2 {[%emt 0:00:17]} Qd5 {[%emt 0:00:07]} 16. Kb1 {[%emt 0:00:35]} Qb5 {[%emt 0:00:15]} 17. c4 {[%emt 0:10:33]} Qf5+ {[%emt 0:00:10]} 18. Ka1 {[%emt 0:00:27]} O-O-O {[%emt 0:07:05]} 19. Bc3 {[%emt 0:15:54]} Ne4 {[%emt 0:11:09]} 20. Ne5 {[%emt 0:03:51]} Nxc3 {[%emt 0:12:20]} 21. bxc3 {[%emt 0:00:25]} Bd6 {[%emt 0:08:09]} 22. g4 {[%emt 0:04:17]} Qf4 {[%emt 0:08:06]} 23. Nd3 {[%emt 0:01:26]} Qg5 {[%emt 0:01:18]} 24. c5 {[%emt 0:09:16]} Bc7 {[%emt 0:03:36]} 25. f4 {[%emt 0:06:19]} Qe7 {[%emt 0:06:42]} 26. Rb1 {[%emt 0:06:16]} f6 {[%emt 0:05:47]} 27. Qb2 {[%emt 0:05:25]} Bb8 {[%emt 0:12:41]} 28. Rhe1 {[%emt 0:01:37]} Rd7 {[%emt 0:00:32]} 29. Re4 {[%emt 0:04:51]} Qf7 {[%emt 0:02:36]} 30. Qb3 {[%emt 0:03:28]} Re8 {[%emt 0:02:13]} 31. Rbe1 {[%emt 0:07:16]} f5 {[%emt 0:04:40]} 32. Rxe6 {[%emt 0:04:21]} Rxe6 {[%emt 0:05:20]} 33. Qxe6 {[%emt 0:00:32]} fxg4 {[%emt 0:01:35]} 34. Qxg4 {[%emt 0:00:56]} Qc4 {[%emt 0:01:08]} 35. Kb2 {[%emt 0:10:12]} Qxd3 {[%emt 0:02:49]} 36. Re7 {[%emt 0:00:50]} Qd2+ {[%emt 0:05:15]} 37. Kb3 {[%emt 0:00:45]} Qd1+ {[%emt 0:00:35]} 38. Qxd1 {[%emt 0:00:08]} Rxe7 {[%emt 0:00:02]} 39. Qg4+ {[%emt 0:01:54]} Kd8 {[%emt 0:01:06]} 40. f5 {[%emt 0:01:09]} Bh2 {[%emt 0:01:39]} 41. Qh4 {[%emt 0:31:21]} Bg1 {[%emt 0:31:06]} 42. f6 {[%emt 0:01:00]} gxf6 {[%emt 0:00:45]} 43. Qg3 {[%emt 0:01:05]} Be3 {[%emt 0:00:36]} 44. Qb8+ {[%emt 0:00:14]} Kd7 {[%emt 0:00:04]} 45. Qxb7+ {[%emt 0:00:10]} Ke8 {[%emt 0:00:06]} 46. Qxc6+ {[%emt 0:00:20]} Kf7 {[%emt 0:00:05]} 47. Qd5+ {[%emt 0:00:22]} Kg7 {[%emt 0:00:56]} 48. c6 {[%emt 0:00:29]} Bf4 {[%emt 0:00:18]} 49. Qf5 {[%emt 0:00:16]} 1-0